[Event "Titled Tuesday Blitz April 12 Early 2022"]
[White "Namitbir Singh Walia"]
[Black "Mikhailov, Viacheslav"]
[WhiteFideId "35071068"]
[BlackFideId "4187369"]
[WhiteElo "1565"]
[BlackElo "2381"]
[Result "0-1"]
[Round "01"]
[TimeControl "180+1"]
[Date "2022.04.13"]
[WhiteClock "0:00:03"]
[BlackClock "0:00:55"]

1. d4 {[%clk 0:02:59]}  Nf6 {[%clk 0:02:59]} 2. c4 {[%clk 0:02:59]}  g6 {[%clk 0:03:00]} 3. Nf3 {[%clk 0:02:59]}  Bg7 {[%clk 0:03:00]} 4. g3 {[%clk 0:03:00]}  O-O {[%clk 0:03:00]} 5. Bg2 {[%clk 0:03:00]}  d6 {[%clk 0:03:01]} 6. O-O {[%clk 0:03:00]}  Nc6 {[%clk 0:03:01]} 7. b3 {[%clk 0:02:53]}  e5 {[%clk 0:02:59]} 8. Bb2 {[%clk 0:02:51]}  exd4 {[%clk 0:02:58]} 9. Nxd4 {[%clk 0:02:49]}  Bd7 {[%clk 0:02:59]} 10. Nd2 {[%clk 0:02:41]}  Nxd4 {[%clk 0:02:55]} 11. Bxd4 {[%clk 0:02:39]}  Bc6 {[%clk 0:02:56]} 12. e4 {[%clk 0:02:34]}  Re8 {[%clk 0:02:55]} 13. Re1 {[%clk 0:02:32]}  h5 {[%clk 0:02:52]} 14. Qc2 {[%clk 0:02:15]}  Nd7 {[%clk 0:02:42]} 15. Bxg7 {[%clk 0:02:12]}  Kxg7 {[%clk 0:02:43]} 16. f4 {[%clk 0:02:01]}  Qf6 {[%clk 0:02:42]} 17. Rad1 {[%clk 0:01:57]}  h4 {[%clk 0:02:39]} 18. Nf3 {[%clk 0:01:56]}  hxg3 {[%clk 0:02:39]} 19. hxg3 {[%clk 0:01:57]}  Rad8 {[%clk 0:02:35]} 20. Ng5 {[%clk 0:01:46]}  Nc5 {[%clk 0:02:30]} 21. Kf2 {[%clk 0:01:41]}  Ne6 {[%clk 0:02:25]} 22. Nf3 {[%clk 0:01:33]}  Nc5 {[%clk 0:02:10]} 23. Ng5 {[%clk 0:01:32]}  Rd7 {[%clk 0:02:11]} 24. Rh1 {[%clk 0:01:21]}  Rh8 {[%clk 0:02:09]} 25. Rxh8 {[%clk 0:01:11]}  Kxh8 {[%clk 0:02:10]} 26. Bf3 {[%clk 0:00:49]}  Kg7 {[%clk 0:01:53]} 27. Qe2 {[%clk 0:00:19]}  Rd8 {[%clk 0:01:48]} 28. Kg1 {[%clk 0:00:18]}  Rh8 {[%clk 0:01:34]} 29. Qg2 {[%clk 0:00:17]}  Qc3 {[%clk 0:01:31]} 30. Qe2 {[%clk 0:00:17]}  f6 {[%clk 0:01:14]} 31. b4 {[%clk 0:00:09]}  fxg5 {[%clk 0:00:54]} 32. bxc5 {[%clk 0:00:08]}  g4 {[%clk 0:00:55]} 33. Rd3 {[%clk 0:00:03]}  gxf3 {[%clk 0:00:55]} 0-1


[Site "https://www.chess.com"]

[Event "Titled Tuesday Blitz April 12 Early 2022"]
[White "Niemann, Hans Moke"]
[Black "Shandrygin, Nikita"]
[WhiteFideId "2093596"]
[BlackFideId "24198668"]
[WhiteElo "2632"]
[BlackElo "2323"]
[Result "1-0"]
[Round "01"]
[TimeControl "180+1"]
[Date "2022.04.12"]
[WhiteClock "0:02:12"]
[BlackClock "0:00:15"]

1. d4 {[%clk 0:03:00]}  d5 {[%clk 0:02:59]} 2. Nc3 {[%clk 0:02:59]}  Nc6 {[%clk 0:03:00]} 3. Bf4 {[%clk 0:02:57]}  Bf5 {[%clk 0:02:58]} 4. e3 {[%clk 0:02:56]}  a6 {[%clk 0:02:56]} 5. g4 {[%clk 0:02:53]}  Bg6 {[%clk 0:02:56]} 6. h4 {[%clk 0:02:53]}  h6 {[%clk 0:02:50]} 7. Bd3 {[%clk 0:02:52]}  Bxd3 {[%clk 0:02:48]} 8. Qxd3 {[%clk 0:02:53]}  e6 {[%clk 0:02:47]} 9. Nge2 {[%clk 0:02:50]}  Bd6 {[%clk 0:02:44]} 10. O-O-O {[%clk 0:02:49]}  Nge7 {[%clk 0:02:41]} 11. e4 {[%clk 0:02:48]}  Qd7 {[%clk 0:02:19]} 12. e5 {[%clk 0:02:37]}  Bb4 {[%clk 0:02:09]} 13. h5 {[%clk 0:02:38]}  O-O-O {[%clk 0:02:04]} 14. Kb1 {[%clk 0:02:33]}  Na7 {[%clk 0:01:53]} 15. a3 {[%clk 0:02:32]}  Ba5 {[%clk 0:01:50]} 16. Nc1 {[%clk 0:02:30]}  Nb5 {[%clk 0:01:45]} 17. N3e2 {[%clk 0:02:27]}  Bb6 {[%clk 0:01:41]} 18. Nb3 {[%clk 0:02:27]}  Nc6 {[%clk 0:01:36]} 19. Be3 {[%clk 0:02:22]}  Na5 {[%clk 0:01:31]} 20. Nxa5 {[%clk 0:02:21]}  Bxa5 {[%clk 0:01:31]} 21. f4 {[%clk 0:02:22]}  Bb6 {[%clk 0:01:14]} 22. f5 {[%clk 0:02:22]}  Rhe8 {[%clk 0:00:17]} 23. f6 {[%clk 0:02:16]}  gxf6 {[%clk 0:00:15]} 24. Bxh6 {[%clk 0:02:12]}  Rh8 {[%clk 0:00:16]} 25. Bg7 {[%clk 0:02:12]}  Rhg8 {[%clk 0:00:15]} 26. exf6 {[%clk 0:02:12]}  Rde8 {[%clk 0:00:15]} 27. h6 {[%clk 0:02:12]} 1-0


[Site "https://www.chess.com"]

[Event "Titled Tuesday Blitz April 12 Early 2022"]
[White "Nogerbek, Kazybek"]
[Black "Bettalli, Francesco"]
[WhiteFideId "13710427"]
[BlackFideId "2816453"]
[WhiteElo "2834"]
[BlackElo "2453"]
[Result "1-0"]
[Round "01"]
[TimeControl "180+1"]
[Date "2022.04.13"]
[WhiteClock "0:01:38"]
[BlackClock "0:01:08"]

1. c4 {[%clk 0:02:59]}  c5 {[%clk 0:03:00]} 2. Nc3 {[%clk 0:02:59]}  g6 {[%clk 0:03:00]} 3. Nf3 {[%clk 0:02:58]}  Bg7 {[%clk 0:03:00]} 4. d4 {[%clk 0:02:58]}  cxd4 {[%clk 0:03:01]} 5. Nxd4 {[%clk 0:02:59]}  Nf6 {[%clk 0:03:01]} 6. e4 {[%clk 0:02:57]}  Nc6 {[%clk 0:03:00]} 7. Be3 {[%clk 0:02:53]}  O-O {[%clk 0:02:59]} 8. Be2 {[%clk 0:02:53]}  Re8 {[%clk 0:02:53]} 9. O-O {[%clk 0:02:51]}  d6 {[%clk 0:02:49]} 10. f3 {[%clk 0:02:42]}  a6 {[%clk 0:02:47]} 11. Qd2 {[%clk 0:02:41]}  Rb8 {[%clk 0:02:47]} 12. Rac1 {[%clk 0:02:40]}  Bd7 {[%clk 0:02:43]} 13. Rfd1 {[%clk 0:02:40]}  Qa5 {[%clk 0:02:41]} 14. a3 {[%clk 0:02:25]}  Nxd4 {[%clk 0:02:38]} 15. Bxd4 {[%clk 0:02:25]}  Qh5 {[%clk 0:02:33]} 16. b4 {[%clk 0:02:02]}  Rec8 {[%clk 0:02:20]} 17. c5 {[%clk 0:01:58]}  Ne8 {[%clk 0:02:03]} 18. Bxg7 {[%clk 0:01:57]}  Kxg7 {[%clk 0:02:04]} 19. Qd4+ {[%clk 0:01:48]}  f6 {[%clk 0:01:41]} 20. Nd5 {[%clk 0:01:45]}  e5 {[%clk 0:01:36]} 21. Qe3 {[%clk 0:01:45]}  dxc5 {[%clk 0:01:17]} 22. Nb6 {[%clk 0:01:43]}  Be6 {[%clk 0:01:09]} 23. Nxc8 {[%clk 0:01:43]}  Rxc8 {[%clk 0:01:10]} 24. Rxc5 {[%clk 0:01:44]}  Rxc5 {[%clk 0:01:10]} 25. Qxc5 {[%clk 0:01:45]}  g5 {[%clk 0:01:10]} 26. Qe7+ {[%clk 0:01:43]}  Bf7 {[%clk 0:01:08]} 27. Bc4 {[%clk 0:01:41]}  Kg8 {[%clk 0:01:08]} 28. Qxe8+ {[%clk 0:01:38]} 1-0


[Site "https://www.chess.com"]

[Event "Titled Tuesday Blitz April 12 Early 2022"]
[White "Ovezdurdyyeva, Jemal"]
[Black "Kozak, Antoni"]
[WhiteFideId "14001888"]
[BlackFideId "21832030"]
[WhiteElo "1946"]
[BlackElo "2236"]
[Result "0-1"]
[Round "01"]
[TimeControl "180+1"]
[Date "2022.04.13"]
[WhiteClock "0:01:05"]
[BlackClock "0:00:48"]

1. e4 {[%clk 0:02:58]}  c5 {[%clk 0:02:52]} 2. Nf3 {[%clk 0:02:58]}  d6 {[%clk 0:02:52]} 3. d4 {[%clk 0:02:57]}  cxd4 {[%clk 0:02:52]} 4. Nxd4 {[%clk 0:02:58]}  Nf6 {[%clk 0:02:52]} 5. Nc3 {[%clk 0:02:58]}  a6 {[%clk 0:02:52]} 6. Bc4 {[%clk 0:02:58]}  e6 {[%clk 0:02:49]} 7. O-O {[%clk 0:02:54]}  Be7 {[%clk 0:02:38]} 8. Kh1 {[%clk 0:02:49]}  O-O {[%clk 0:02:29]} 9. f4 {[%clk 0:02:48]}  Nxe4 {[%clk 0:02:25]} 10. Nxe4 {[%clk 0:02:45]}  d5 {[%clk 0:02:25]} 11. Bd3 {[%clk 0:02:42]}  dxe4 {[%clk 0:02:20]} 12. Bxe4 {[%clk 0:02:43]}  Bf6 {[%clk 0:02:12]} 13. Be3 {[%clk 0:02:40]}  Qc7 {[%clk 0:02:03]} 14. Qf3 {[%clk 0:02:32]}  Nd7 {[%clk 0:01:53]} 15. c3 {[%clk 0:02:24]}  Nc5 {[%clk 0:01:44]} 16. Bc2 {[%clk 0:02:23]}  Bd7 {[%clk 0:01:35]} 17. Ne2 {[%clk 0:02:10]}  Bc6 {[%clk 0:01:28]} 18. Qh5 {[%clk 0:02:09]}  Ne4 {[%clk 0:01:13]} 19. Nd4 {[%clk 0:02:02]}  g6 {[%clk 0:01:09]} 20. Qh3 {[%clk 0:02:00]}  Bd5 {[%clk 0:01:05]} 21. Rae1 {[%clk 0:01:58]}  Nd6 {[%clk 0:01:03]} 22. Bc1 {[%clk 0:01:23]}  Bxd4 {[%clk 0:00:58]} 23. cxd4 {[%clk 0:01:12]}  Qxc2 {[%clk 0:00:58]} 24. Re3 {[%clk 0:01:07]}  Rac8 {[%clk 0:00:50]} 25. Qh6 {[%clk 0:01:05]}  Qxg2# {[%clk 0:00:48]} 0-1


[Site "https://www.chess.com"]

[Event "Titled Tuesday Blitz April 12 Early 2022"]
[White "Pacheco Lugo, Alejandro Jose"]
[Black "Secheres, Adrian-Simion"]
[WhiteFideId "3903745"]
[BlackFideId "1217445"]
[WhiteElo "2146"]
[BlackElo "2277"]
[Result "0-1"]
[Round "01"]
[TimeControl "180+1"]
[Date "2022.04.13"]
[WhiteClock "0:00:02"]
[BlackClock "0:00:22"]

1. e4 {[%clk 0:03:00]}  Nc6 {[%clk 0:03:00]} 2. Nf3 {[%clk 0:03:00]}  d6 {[%clk 0:02:59]} 3. d4 {[%clk 0:02:59]}  g6 {[%clk 0:03:00]} 4. Nc3 {[%clk 0:02:59]}  Bg7 {[%clk 0:03:00]} 5. Be3 {[%clk 0:02:59]}  Nf6 {[%clk 0:03:00]} 6. Qd2 {[%clk 0:02:55]}  a6 {[%clk 0:02:58]} 7. a3 {[%clk 0:02:55]}  O-O {[%clk 0:02:58]} 8. Bd3 {[%clk 0:02:55]}  b5 {[%clk 0:02:56]} 9. O-O {[%clk 0:02:54]}  Ng4 {[%clk 0:02:53]} 10. Bg5 {[%clk 0:02:33]}  Nxd4 {[%clk 0:02:49]} 11. Nxd4 {[%clk 0:02:33]}  Bxd4 {[%clk 0:02:50]} 12. Nd5 {[%clk 0:02:32]}  Bf6 {[%clk 0:02:38]} 13. Nxf6+ {[%clk 0:02:26]}  exf6 {[%clk 0:02:38]} 14. Bh4 {[%clk 0:02:22]}  c6 {[%clk 0:02:09]} 15. Rfe1 {[%clk 0:02:21]}  Re8 {[%clk 0:02:02]} 16. h3 {[%clk 0:02:19]}  Ne5 {[%clk 0:02:02]} 17. Bf1 {[%clk 0:02:19]}  g5 {[%clk 0:01:56]} 18. Bg3 {[%clk 0:02:18]}  Qe7 {[%clk 0:01:56]} 19. Rad1 {[%clk 0:02:16]}  Rd8 {[%clk 0:01:56]} 20. f4 {[%clk 0:02:15]}  gxf4 {[%clk 0:01:55]} 21. Qxf4 {[%clk 0:02:15]}  Be6 {[%clk 0:01:54]} 22. b3 {[%clk 0:02:09]}  Ng6 {[%clk 0:01:52]} 23. Qh6 {[%clk 0:02:03]}  Rd7 {[%clk 0:01:49]} 24. h4 {[%clk 0:02:02]}  Qf8 {[%clk 0:01:48]} 25. Qxf8+ {[%clk 0:02:00]}  Rxf8 {[%clk 0:01:43]} 26. Rxd6 {[%clk 0:01:53]}  Rxd6 {[%clk 0:01:35]} 27. Bxd6 {[%clk 0:01:54]}  Rd8 {[%clk 0:01:35]} 28. Bg3 {[%clk 0:01:53]}  Rd2 {[%clk 0:01:34]} 29. Re2 {[%clk 0:01:54]}  Rd1 {[%clk 0:01:32]} 30. Kf2 {[%clk 0:01:54]}  Ne5 {[%clk 0:01:31]} 31. Bxe5 {[%clk 0:01:36]}  fxe5 {[%clk 0:01:32]} 32. Re1 {[%clk 0:01:29]}  Rd2+ {[%clk 0:01:32]} 33. Re2 {[%clk 0:01:29]}  Rd1 {[%clk 0:01:32]} 34. Re1 {[%clk 0:01:30]}  Rd6 {[%clk 0:01:31]} 35. Ke3 {[%clk 0:01:23]}  Kf8 {[%clk 0:01:28]} 36. Bd3 {[%clk 0:01:22]}  Ke7 {[%clk 0:01:28]} 37. b4 {[%clk 0:01:23]}  f6 {[%clk 0:01:28]} 38. Ra1 {[%clk 0:01:14]}  Rd8 {[%clk 0:01:26]} 39. a4 {[%clk 0:01:15]}  Rg8 {[%clk 0:01:27]} 40. Kf2 {[%clk 0:01:13]}  Kd6 {[%clk 0:01:09]} 41. axb5 {[%clk 0:01:12]}  axb5 {[%clk 0:01:10]} 42. Ra7 {[%clk 0:01:12]}  Bd7 {[%clk 0:01:10]} 43. g3 {[%clk 0:01:03]}  h6 {[%clk 0:01:10]} 44. c4 {[%clk 0:00:57]}  bxc4 {[%clk 0:01:10]} 45. Bxc4 {[%clk 0:00:58]}  Rb8 {[%clk 0:01:10]} 46. Ra4 {[%clk 0:00:47]}  Ke7 {[%clk 0:01:10]} 47. Ke3 {[%clk 0:00:40]}  c5 {[%clk 0:01:09]} 48. b5 {[%clk 0:00:41]}  Bxb5 {[%clk 0:01:08]} 49. Ra7+ {[%clk 0:00:34]}  Kd6 {[%clk 0:01:06]} 50. Bd5 {[%clk 0:00:31]}  c4 {[%clk 0:01:03]} 51. Rf7 {[%clk 0:00:29]}  Kc5 {[%clk 0:01:00]} 52. Rxf6 {[%clk 0:00:28]}  c3 {[%clk 0:00:59]} 53. Rf7 {[%clk 0:00:26]}  Rc8 {[%clk 0:00:58]} 54. Bb3 {[%clk 0:00:24]}  Kb4 {[%clk 0:00:58]} 55. Bc2 {[%clk 0:00:24]}  Rd8 {[%clk 0:00:57]} 56. Rf2 {[%clk 0:00:24]}  Ba4 {[%clk 0:00:55]} 57. Bd3 {[%clk 0:00:16]}  Rc8 {[%clk 0:00:45]} 58. g4 {[%clk 0:00:14]}  c2 {[%clk 0:00:45]} 59. Bxc2 {[%clk 0:00:14]}  Bxc2 {[%clk 0:00:45]} 60. g5 {[%clk 0:00:14]}  hxg5 {[%clk 0:00:45]} 61. hxg5 {[%clk 0:00:15]}  Rc4 {[%clk 0:00:44]} 62. Rg2 {[%clk 0:00:15]}  Rxe4+ {[%clk 0:00:43]} 63. Kd2 {[%clk 0:00:14]}  Bb3 {[%clk 0:00:43]} 64. g6 {[%clk 0:00:15]}  Rd4+ {[%clk 0:00:41]} 65. Ke3 {[%clk 0:00:14]}  Rd8 {[%clk 0:00:34]} 66. Rg5 {[%clk 0:00:14]}  Re8 {[%clk 0:00:33]} 67. Ke4 {[%clk 0:00:15]}  Bc2+ {[%clk 0:00:33]} 68. Ke3 {[%clk 0:00:15]}  e4 {[%clk 0:00:32]} 69. g7 {[%clk 0:00:15]}  Bb3 {[%clk 0:00:33]} 70. Rg4 {[%clk 0:00:14]}  Kc5 {[%clk 0:00:18]} 71. Rxe4 {[%clk 0:00:14]}  Rg8 {[%clk 0:00:19]} 72. Rg4 {[%clk 0:00:14]}  Be6 {[%clk 0:00:19]} 73. Rg3 {[%clk 0:00:13]}  Kd6 {[%clk 0:00:19]} 74. Kf4 {[%clk 0:00:13]}  Ke7 {[%clk 0:00:20]} 75. Ke5 {[%clk 0:00:14]}  Bf7 {[%clk 0:00:20]} 76. Rg1 {[%clk 0:00:13]}  Bh5 {[%clk 0:00:19]} 77. Kf5 {[%clk 0:00:13]}  Kf7 {[%clk 0:00:19]} 78. Ke5 {[%clk 0:00:13]}  Bg6 {[%clk 0:00:19]} 79. Ra1 {[%clk 0:00:10]}  Kxg7 {[%clk 0:00:19]} 80. Ra7+ {[%clk 0:00:10]}  Kh6 {[%clk 0:00:20]} 81. Kf6 {[%clk 0:00:10]}  Rf8+ {[%clk 0:00:21]} 82. Ke6 {[%clk 0:00:10]}  Kg5 {[%clk 0:00:21]} 83. Ra5+ {[%clk 0:00:10]}  Bf5+ {[%clk 0:00:21]} 84. Ke5 {[%clk 0:00:09]}  Re8+ {[%clk 0:00:21]} 85. Kd4 {[%clk 0:00:09]}  Kf4 {[%clk 0:00:22]} 86. Ra1 {[%clk 0:00:09]}  Rd8+ {[%clk 0:00:22]} 87. Kc5 {[%clk 0:00:09]}  Ke5 {[%clk 0:00:22]} 88. Re1+ {[%clk 0:00:09]}  Be4 {[%clk 0:00:23]} 89. Re2 {[%clk 0:00:10]}  Rc8+ {[%clk 0:00:23]} 90. Kb4 {[%clk 0:00:10]}  Kd4 {[%clk 0:00:23]} 91. Rh2 {[%clk 0:00:08]}  Rb8+ {[%clk 0:00:22]} 92. Ka3 {[%clk 0:00:08]}  Kc3 {[%clk 0:00:22]} 93. Ka4 {[%clk 0:00:03]}  Bd3 {[%clk 0:00:22]} 94. Ka5 {[%clk 0:00:02]}  Rb5+ {[%clk 0:00:22]} 95. Ka4 {[%clk 0:00:02]}  Rb6 {[%clk 0:00:22]} 0-1


[Site "https://www.chess.com"]

[Event "Titled Tuesday Blitz April 12 Early 2022"]
[White "Padmini, Rout"]
[Black "Kejzar, Petra"]
[WhiteFideId "5029295"]
[BlackFideId "14610213"]
[WhiteElo "2181"]
[BlackElo "2003"]
[Result "1-0"]
[Round "01"]
[TimeControl "180+1"]
[Date "2022.04.13"]
[WhiteClock "0:00:50"]
[BlackClock "0:00:21"]

1. Nf3 {[%clk 0:02:58]}  Nf6 {[%clk 0:02:59]} 2. g3 {[%clk 0:02:58]}  d5 {[%clk 0:02:55]} 3. Bg2 {[%clk 0:02:58]}  e6 {[%clk 0:02:33]} 4. O-O {[%clk 0:02:56]}  Be7 {[%clk 0:02:33]} 5. d3 {[%clk 0:02:54]}  O-O {[%clk 0:02:33]} 6. Nbd2 {[%clk 0:02:53]}  c5 {[%clk 0:02:33]} 7. e4 {[%clk 0:02:53]}  Nc6 {[%clk 0:02:32]} 8. Re1 {[%clk 0:02:54]}  Rb8 {[%clk 0:02:30]} 9. e5 {[%clk 0:02:49]}  Nd7 {[%clk 0:02:29]} 10. Nf1 {[%clk 0:02:49]}  Qc7 {[%clk 0:02:28]} 11. Bf4 {[%clk 0:02:46]}  b5 {[%clk 0:02:26]} 12. h4 {[%clk 0:02:44]}  b4 {[%clk 0:02:18]} 13. N1h2 {[%clk 0:02:41]}  a5 {[%clk 0:02:17]} 14. Ng4 {[%clk 0:02:41]}  c4 {[%clk 0:02:14]} 15. d4 {[%clk 0:02:36]}  c3 {[%clk 0:02:12]} 16. b3 {[%clk 0:02:36]}  a4 {[%clk 0:02:12]} 17. h5 {[%clk 0:02:29]}  Bb7 {[%clk 0:02:05]} 18. Bf1 {[%clk 0:01:34]}  axb3 {[%clk 0:02:02]} 19. axb3 {[%clk 0:01:33]}  Ra8 {[%clk 0:02:02]} 20. Bd3 {[%clk 0:01:31]}  Rxa1 {[%clk 0:02:01]} 21. Qxa1 {[%clk 0:01:31]}  Ra8 {[%clk 0:02:02]} 22. Qc1 {[%clk 0:01:30]}  Ba6 {[%clk 0:01:59]} 23. Bxa6 {[%clk 0:01:23]}  Rxa6 {[%clk 0:01:59]} 24. h6 {[%clk 0:01:23]}  g6 {[%clk 0:01:53]} 25. Bg5 {[%clk 0:01:19]}  Qa7 {[%clk 0:01:31]} 26. Bxe7 {[%clk 0:01:15]}  Nxe7 {[%clk 0:01:30]} 27. Qg5 {[%clk 0:01:14]}  Nc6 {[%clk 0:01:24]} 28. Nf6+ {[%clk 0:01:11]}  Kf8 {[%clk 0:00:42]} 29. Nxh7+ {[%clk 0:00:59]}  Ke8 {[%clk 0:00:34]} 30. Nf6+ {[%clk 0:00:56]}  Kf8 {[%clk 0:00:25]} 31. Nxd7+ {[%clk 0:00:51]}  Qxd7 {[%clk 0:00:25]} 32. Qf6 {[%clk 0:00:51]}  Qd8 {[%clk 0:00:21]} 33. h7 {[%clk 0:00:50]} 1-0


[Site "https://www.chess.com"]

[Event "Titled Tuesday Blitz April 12 Early 2022"]
[White "Papadiamandis, Elliot"]
[Black "Kaminski, Victor"]
[WhiteFideId "36074160"]
[BlackFideId "1131630"]
[WhiteElo "2088"]
[BlackElo "2181"]
[Result "0-1"]
[Round "01"]
[TimeControl "180+1"]
[Date "2022.04.13"]
[WhiteClock "0:00:57"]
[BlackClock "0:00:04"]

1. e4 {[%clk 0:03:00]}  e5 {[%clk 0:02:59]} 2. Nf3 {[%clk 0:03:01]}  Nc6 {[%clk 0:02:59]} 3. Bc4 {[%clk 0:03:01]}  Nf6 {[%clk 0:02:57]} 4. d3 {[%clk 0:03:02]}  Bc5 {[%clk 0:02:55]} 5. c3 {[%clk 0:03:02]}  d6 {[%clk 0:02:55]} 6. Nbd2 {[%clk 0:03:03]}  h6 {[%clk 0:02:54]} 7. h3 {[%clk 0:03:03]}  O-O {[%clk 0:02:55]} 8. Qe2 {[%clk 0:03:03]}  Ne7 {[%clk 0:02:55]} 9. d4 {[%clk 0:03:02]}  exd4 {[%clk 0:02:53]} 10. cxd4 {[%clk 0:03:03]}  Bb6 {[%clk 0:02:53]} 11. O-O {[%clk 0:03:03]}  d5 {[%clk 0:02:52]} 12. Bd3 {[%clk 0:03:02]}  dxe4 {[%clk 0:02:50]} 13. Nxe4 {[%clk 0:03:03]}  Nxe4 {[%clk 0:02:51]} 14. Bxe4 {[%clk 0:02:57]}  c6 {[%clk 0:02:49]} 15. Be3 {[%clk 0:02:40]}  Bf5 {[%clk 0:02:46]} 16. Bxf5 {[%clk 0:02:34]}  Nxf5 {[%clk 0:02:47]} 17. Rad1 {[%clk 0:02:34]}  Qd5 {[%clk 0:02:44]} 18. Ne5 {[%clk 0:02:30]}  Rfe8 {[%clk 0:02:34]} 19. Qg4 {[%clk 0:02:28]}  g6 {[%clk 0:02:11]} 20. Rfe1 {[%clk 0:02:23]}  h5 {[%clk 0:02:05]} 21. Qg5 {[%clk 0:02:15]}  Bd8 {[%clk 0:02:04]} 22. Qf4 {[%clk 0:02:14]}  Bc7 {[%clk 0:01:57]} 23. Qg5 {[%clk 0:02:10]}  Rxe5 {[%clk 0:01:24]} 24. dxe5 {[%clk 0:02:11]}  Qxe5 {[%clk 0:01:25]} 25. Rd7 {[%clk 0:01:51]}  Re8 {[%clk 0:01:06]} 26. g3 {[%clk 0:01:45]}  Ba5 {[%clk 0:00:40]} 27. Red1 {[%clk 0:01:42]}  Qxb2 {[%clk 0:00:20]} 28. R1d3 {[%clk 0:01:29]}  Be1 {[%clk 0:00:13]} 29. Rd8 {[%clk 0:01:24]}  Rxd8 {[%clk 0:00:10]} 30. Qxd8+ {[%clk 0:01:25]}  Kh7 {[%clk 0:00:10]} 31. Qd7 {[%clk 0:01:19]}  Qb1 {[%clk 0:00:05]} 32. Kg2 {[%clk 0:01:14]}  Ng7 {[%clk 0:00:03]} 33. Bf4 {[%clk 0:01:05]}  Ba5 {[%clk 0:00:03]} 34. Re3 {[%clk 0:01:02]}  Bb6 {[%clk 0:00:03]} 35. Re7 {[%clk 0:01:01]}  Qc2 {[%clk 0:00:02]} 36. Qd2 {[%clk 0:01:00]}  Qc5 {[%clk 0:00:02]} 37. Be3 {[%clk 0:00:59]}  Qxe7 {[%clk 0:00:02]} 38. Bxb6 {[%clk 0:00:59]}  axb6 {[%clk 0:00:03]} 39. Qd4 {[%clk 0:00:56]}  b5 {[%clk 0:00:03]} 40. Qb6 {[%clk 0:00:56]}  Qe6 {[%clk 0:00:04]} 41. Qxb7 {[%clk 0:00:56]}  Qd5+ {[%clk 0:00:04]} 42. Kg1 {[%clk 0:00:57]}  Qxa2 {[%clk 0:00:04]} 43. Qxc6 {[%clk 0:00:57]}  Qc4 {[%clk 0:00:05]} 44. Qb6 {[%clk 0:00:57]}  b4 {[%clk 0:00:05]} 45. g4 {[%clk 0:00:57]}  hxg4 {[%clk 0:00:05]} 46. hxg4 {[%clk 0:00:58]}  Qxg4+ {[%clk 0:00:05]} 47. Kf1 {[%clk 0:00:59]}  Qc4+ {[%clk 0:00:06]} 48. Kg2 {[%clk 0:00:59]}  b3 {[%clk 0:00:07]} 49. Qf6 {[%clk 0:00:59]}  Qc2 {[%clk 0:00:07]} 50. Qh4+ {[%clk 0:00:59]}  Nh5 {[%clk 0:00:06]} 51. Qe7 {[%clk 0:00:59]}  Qc6+ {[%clk 0:00:04]} 52. Kg1 {[%clk 0:01:00]}  Qc1+ {[%clk 0:00:04]} 53. Kg2 {[%clk 0:01:00]}  b2 {[%clk 0:00:03]} 54. Qxf7+ {[%clk 0:01:00]}  Ng7 {[%clk 0:00:03]} 55. Qe7 {[%clk 0:00:57]}  b1=Q {[%clk 0:00:04]} 56. Qh4+ {[%clk 0:00:57]}  Qh6 {[%clk 0:00:04]} 0-1


[Site "https://www.chess.com"]

[Event "Titled Tuesday Blitz April 12 Early 2022"]
[White "Papp, Levente"]
[Black "Sovetbekova, Nurai"]
[WhiteFideId "751243"]
[BlackFideId "13801910"]
[WhiteElo "2308"]
[BlackElo "1538"]
[Result "1-0"]
[Round "01"]
[TimeControl "180+1"]
[Date "2022.04.13"]
[WhiteClock "0:00:19"]
[BlackClock "0:00:04"]

1. Nf3 {[%clk 0:03:00]}  Nf6 {[%clk 0:02:56]} 2. g3 {[%clk 0:02:57]}  g6 {[%clk 0:02:56]} 3. Bg2 {[%clk 0:02:58]}  Bg7 {[%clk 0:02:56]} 4. O-O {[%clk 0:02:58]}  O-O {[%clk 0:02:57]} 5. d4 {[%clk 0:02:56]}  d5 {[%clk 0:02:51]} 6. c4 {[%clk 0:02:55]}  c6 {[%clk 0:02:44]} 7. cxd5 {[%clk 0:02:55]}  cxd5 {[%clk 0:02:41]} 8. Nc3 {[%clk 0:02:56]}  Nc6 {[%clk 0:02:39]} 9. Ne5 {[%clk 0:02:56]}  Ng4 {[%clk 0:02:30]} 10. Nxc6 {[%clk 0:02:45]}  bxc6 {[%clk 0:02:27]} 11. h3 {[%clk 0:02:31]}  Nf6 {[%clk 0:02:19]} 12. Bf4 {[%clk 0:02:26]}  Qb6 {[%clk 0:02:07]} 13. Na4 {[%clk 0:02:13]}  Qb4 {[%clk 0:02:00]} 14. a3 {[%clk 0:02:09]}  Qa5 {[%clk 0:01:49]} 15. b4 {[%clk 0:02:08]}  Qd8 {[%clk 0:01:46]} 16. Rc1 {[%clk 0:02:07]}  Bb7 {[%clk 0:01:44]} 17. Nc5 {[%clk 0:02:06]}  Qb6 {[%clk 0:01:38]} 18. Qa4 {[%clk 0:01:54]}  Rfd8 {[%clk 0:01:31]} 19. Nxb7 {[%clk 0:01:52]}  Qxb7 {[%clk 0:01:29]} 20. Qxc6 {[%clk 0:01:53]}  Qxc6 {[%clk 0:01:06]} 21. Rxc6 {[%clk 0:01:53]}  Nd7 {[%clk 0:00:55]} 22. Rc7 {[%clk 0:01:19]}  Bxd4 {[%clk 0:00:43]} 23. Bxd5 {[%clk 0:01:13]}  Rac8 {[%clk 0:00:40]} 24. Rfc1 {[%clk 0:01:13]}  Rxc7 {[%clk 0:00:39]} 25. Rxc7 {[%clk 0:01:13]}  Bb6 {[%clk 0:00:37]} 26. Rc2 {[%clk 0:01:07]}  Nf6 {[%clk 0:00:32]} 27. Bf3 {[%clk 0:01:06]}  Rd1+ {[%clk 0:00:31]} 28. Kg2 {[%clk 0:01:06]}  Nd5 {[%clk 0:00:28]} 29. Bh6 {[%clk 0:00:55]}  Nc7 {[%clk 0:00:22]} 30. a4 {[%clk 0:00:51]}  a5 {[%clk 0:00:20]} 31. Rc6 {[%clk 0:00:48]}  Rd6 {[%clk 0:00:17]} 32. Rxd6 {[%clk 0:00:28]}  exd6 {[%clk 0:00:18]} 33. b5 {[%clk 0:00:29]}  f5 {[%clk 0:00:14]} 34. e4 {[%clk 0:00:22]}  fxe4 {[%clk 0:00:13]} 35. Bxe4 {[%clk 0:00:23]}  Kf7 {[%clk 0:00:10]} 36. Bf4 {[%clk 0:00:20]}  Ke6 {[%clk 0:00:10]} 37. Kf3 {[%clk 0:00:20]}  Nd5 {[%clk 0:00:08]} 38. Bd2 {[%clk 0:00:20]}  Nf6 {[%clk 0:00:07]} 39. Bc6 {[%clk 0:00:20]}  Nd5 {[%clk 0:00:06]} 40. Ke2 {[%clk 0:00:20]}  Ne7 {[%clk 0:00:06]} 41. Bb7 {[%clk 0:00:18]}  Nf5 {[%clk 0:00:06]} 42. Kd3 {[%clk 0:00:18]}  Bxf2 {[%clk 0:00:05]} 43. g4 {[%clk 0:00:18]}  Ne7 {[%clk 0:00:03]} 44. Bxa5 {[%clk 0:00:19]}  Ba7 {[%clk 0:00:03]} 45. Bc7 {[%clk 0:00:16]}  Nd5 {[%clk 0:00:03]} 46. Bxd5+ {[%clk 0:00:17]}  Kxd5 {[%clk 0:00:03]} 47. b6 {[%clk 0:00:18]}  Bxb6 {[%clk 0:00:04]} 48. Bxb6 {[%clk 0:00:18]}  Kc6 {[%clk 0:00:04]} 49. a5 {[%clk 0:00:19]} 1-0


[Site "https://www.chess.com"]